bitfinex/quotes_BTCUSD_20241124
["timestamp","ask_amount","ask_price","bid_price","bid_amount"]
[1732473214005,0.20597527,96190.0,96188.0,0.1999]
[1732473214233,0.10201427,96190.0,96188.0,0.1999]
[1732473214462,0.20597527,96190.0,96188.0,0.1999]
[1732473215543,0.103961,96189.0,96188.0,0.1999]
[1732473217251,0.26453601,96189.0,96188.0,0.1999]
[1732473217701,0.47246001,96189.0,96188.0,0.1999]
[1732473217931,0.26453601,96189.0,96188.0,0.1999]
[1732473218152,0.47246001,96189.0,96188.0,0.1999]
[1732473218591,0.26453601,96189.0,96188.0,0.1999]
[1732473219013,0.26258928,96189.0,96177.0,0.0017116]
[1732473219232,0.103973,96178.0,96177.0,0.0017116]
[1732473219459,0.20598727,96178.0,96177.0,0.0017116]
[1732473219671,0.23834806,96178.0,96177.0,0.0017116]
[1732473220983,0.28136223,96178.0,96177.0,0.0017116]
[1732473224051,0.32706223,96178.0,96177.0,0.0017116]
[1732473224709,0.47706223,96178.0,96177.0,0.0017116]
[1732473225782,0.55836223,96178.0,96177.0,0.0017116]
[1732473226195,0.55836223,96178.0,96177.0,0.0016116]
[1732473228503,0.55836223,96178.0,96177.0,0.00044291]
[1732473228932,0.75836223,96178.0,96177.0,0.00044291]
[1732473229144,0.78136223,96178.0,96177.0,0.00044291]
[1732473230949,0.87443857,96178.0,96177.0,0.00044291]
[1732473231393,0.87443058,96178.0,96177.0,0.00044291]
[1732473232271,0.78136223,96178.0,96177.0,0.00044291]
[1732473232895,0.75836223,96178.0,96177.0,0.00044291]
[1732473233735,0.92964752,96178.0,96177.0,0.00044291]
[1732473236398,0.95264752,96178.0,96177.0,0.00044291]
[1732473237448,1.04571587,96178.0,96177.0,0.00044291]
[1732473237664,0.95264752,96178.0,96177.0,0.00044291]
[1732473237884,1.04571587,96178.0,96177.0,0.00044291]
[1732473238104,0.95264752,96178.0,96177.0,0.00044291]
[1732473238317,0.80264752,96178.0,96177.0,0.00044291]
[1732473240581,0.89577216,96178.0,96177.0,0.00044291]
[1732473240806,0.80264752,96178.0,96177.0,0.00044291]
[1732473241696,0.60264752,96178.0,96177.0,0.00044291]
[1732473241930,0.89662638,96178.0,96177.0,0.00044291]
[1732473243434,0.80350352,96178.0,96177.0,0.00044291]
[1732473244134,0.72533729,96178.0,96177.0,0.00044291]
[1732473244548,0.63221823,96178.0,96177.0,0.00044291]
[1732473244964,0.89509617,96178.0,96177.0,0.00044291]
[1732473245407,0.80197875,96178.0,96177.0,0.00044291]
[1732473246756,0.89509697,96178.0,96177.0,0.00044291]
[1732473246963,0.80197875,96178.0,96177.0,0.00044291]
[1732473247596,0.45197875,96178.0,96177.0,0.20034291]
[1732473247810,0.41961796,96178.0,96177.0,0.00044291]
[1732473248066,0.45196511,96178.0,96177.0,0.20034291]
[1732473248307,0.17061652,96178.0,96177.0,0.30431691]
[1732473248534,0.17061652,96178.0,96177.0,0.38221691]
[1732473248757,0.17061652,96178.0,96177.0,0.42711691]
[1732473249181,0.000856,96178.0,96177.0,0.42911691]
[1732473253533,0.000856,96178.0,96177.0,0.42711691]
[1732473254461,0.000856,96178.0,96177.0,0.42911691]
[1732473254677,0.000856,96178.0,96177.0,0.42711691]
[1732473255824,0.000856,96178.0,96177.0,0.42911691]
[1732473258286,0.000856,96178.0,96177.0,0.42711691]
[1732473259223,0.000856,96178.0,96177.0,0.32314291]
[1732473259915,0.000856,96178.0,96177.0,0.42711691]
[1732473260139,0.000856,96178.0,96177.0,0.32314291]
[1732473260820,0.000856,96178.0,96177.0,0.42711691]
[1732473274259,0.000856,96178.0,96177.0,0.32314291]
[1732473275889,0.000856,96178.0,96177.0,0.42711691]
[1732473277047,0.000856,96178.0,96177.0,0.42911691]
[1732473277257,0.000856,96178.0,96177.0,0.42711691]
[1732473278622,0.000856,96178.0,96177.0,0.42911691]
[1732473286235,0.000856,96178.0,96177.0,0.42711691]
[1732473287102,0.000856,96178.0,96177.0,0.42911691]
[1732473300320,0.000856,96178.0,96177.0,0.77911691]
[1732473300534,0.000856,96178.0,96177.0,1.22138718]
[1732473300766,0.000856,96178.0,96177.0,0.99033118]
[1732473302242,0.000856,96178.0,96177.0,1.22127869]
[1732473302443,0.000856,96178.0,96177.0,0.99033118]
[1732473303265,0.000856,96178.0,96177.0,1.22125123]
[1732473303508,0.000856,96178.0,96177.0,0.99033118]
[1732473305253,0.000856,96178.0,96177.0,1.17504256]
[1732473306100,0.000856,96178.0,96177.0,1.17503334]
[1732473306761,0.000856,96178.0,96177.0,0.99033118]
[1732473308755,0.000856,96178.0,96177.0,1.12887151]
[1732473309616,0.000856,96178.0,96177.0,1.12885989]
[1732473309844,0.000856,96178.0,96177.0,0.99033118]
[1732473310282,0.000856,96178.0,96177.0,1.12885387]
[1732473310726,0.000856,96178.0,96177.0,0.99033118]
[1732473313375,0.000856,96178.0,96177.0,1.12883581]
[1732473313593,0.000856,96178.0,96177.0,0.99033118]
[1732473313813,0.000856,96178.0,96177.0,1.12884167]
[1732473314056,0.000856,96178.0,96177.0,0.99033118]
[1732473314281,0.000856,96178.0,96177.0,1.12884167]
[1732473316563,0.000856,96178.0,96177.0,0.99033118]
[1732473317539,0.000856,96178.0,96177.0,1.12884167]
[1732473318423,0.000856,96178.0,96177.0,0.99033118]
[1732473318647,0.000856,96178.0,96177.0,1.12885942]
[1732473320010,0.000856,96178.0,96177.0,0.99033118]
[1732473322543,0.000856,96178.0,96177.0,0.98833118]
[1732473322764,0.000856,96178.0,96177.0,0.99033118]
[1732473323221,0.000856,96178.0,96177.0,1.12888165]
[1732473323446,0.000856,96178.0,96177.0,1.12888285]
[1732473323695,0.000856,96178.0,96177.0,1.12888983]
[1732473323951,0.000856,96178.0,96177.0,0.99033118]
[1732473324625,0.000856,96178.0,96177.0,1.17506674]
[1732473325298,0.000856,96178.0,96177.0,0.99033118]
[1732473325760,0.000856,96178.0,96177.0,1.17506674]
[1732473325976,0.000856,96178.0,96177.0,0.99033118]
[1732473326477,0.000856,96178.0,96177.0,0.45631691]
[1732473326684,0.000856,96178.0,96177.0,0.30631691]
[1732473327997,0.000856,96178.0,96177.0,0.30431691]
[1732473328895,0.000856,96178.0,96177.0,0.30631691]
[1732473329107,0.000856,96178.0,96177.0,0.30431691]
[1732473329550,0.000856,96178.0,96177.0,0.30631691]
[1732473329993,0.000856,96178.0,96177.0,0.30431691]
[1732473330466,0.000856,96178.0,96177.0,0.30631691]
[1732473330691,0.000856,96178.0,96177.0,0.30431691]
[1732473331127,0.000856,96178.0,96177.0,0.30631691]
[1732473337588,0.000856,96178.0,96177.0,0.30431691]
[1732473337811,0.129656,96178.0,96177.0,0.30431691]
[1732473338048,0.00311639,96178.0,96177.0,0.30631691]
[1732473338526,0.000856,96178.0,96177.0,0.30631691]
[1732473338751,0.00311639,96178.0,96177.0,0.30631691]
[1732473342090,0.000856,96178.0,96177.0,0.30631691]
[1732473344388,0.000856,96178.0,96177.0,0.30431691]
[1732473347801,0.000856,96178.0,96177.0,0.30631691]
[1732473354686,0.000856,96178.0,96177.0,0.38231691]
[1732473355150,0.000856,96178.0,96177.0,0.47472819]
[1732473355586,0.000856,96178.0,96177.0,0.38231691]
[1732473356005,0.000856,96178.0,96177.0,0.47469235]
[1732473356241,0.000856,96178.0,96177.0,0.38231691]
[1732473356479,0.000856,96178.0,96177.0,0.58231691]
[1732473356720,0.000856,96178.0,96177.0,0.62951691]
[1732473356939,0.000856,96178.0,96177.0,0.76813383]
[1732473357193,0.000856,96178.0,96177.0,0.62951691]
[1732473357429,0.000856,96178.0,96177.0,0.76814391]
[1732473357646,0.000856,96178.0,96177.0,0.30631691]
[1732473360674,0.077356,96187.0,96186.0,0.103965]
[1732473361375,0.077356,96187.0,96186.0,0.1999]
[1732473363230,0.07962062,96187.0,96186.0,0.1999]
[1732473365136,0.07962062,96187.0,96186.0,0.303865]
[1732473365629,0.077356,96187.0,96186.0,0.303865]
[1732473366091,0.07962062,96187.0,96186.0,0.1999]
[1732473368086,0.07962062,96187.0,96186.0,0.303865]
[1732473368306,0.07962062,96187.0,96186.0,0.1999]
[1732473368792,0.08037642,96187.0,96186.0,0.1999]
[1732473370234,0.08037642,96187.0,96186.0,0.303865]
[1732473370698,0.08037642,96187.0,96186.0,0.31157483]
[1732473370904,0.08037642,96187.0,96186.0,0.31157498]
[1732473371147,0.08037642,96187.0,96186.0,0.20760998]
[1732473371576,0.0781118,96187.0,96186.0,0.20760998]
[1732473373088,0.0781118,96187.0,96186.0,0.31157498]
[1732473373981,0.0781118,96187.0,96186.0,0.20760998]
[1732473374634,0.0803752,96187.0,96186.0,0.31157498]
[1732473375539,0.0803752,96187.0,96186.0,0.20760998]
[1732473378408,0.1843392,96187.0,96186.0,0.20760998]
[1732473378632,0.28635347,96187.0,96186.0,0.20760998]
[1732473378869,0.28635347,96187.0,96186.0,0.00770998]
[1732473379085,0.28635347,96187.0,96186.0,0.1999]
[1732473379508,0.32836847,96187.0,96186.0,0.1999]
[1732473380402,0.10513347,96187.0,96186.0,0.1999]
[1732473380616,0.10513347,96187.0,96186.0,0.3115781]
[1732473381281,0.10513347,96187.0,96186.0,0.303865]
[1732473381782,0.10513347,96187.0,96186.0,0.305865]
[1732473381783,0.0008558,96187.0,96186.0,0.305865]
[1732473381995,0.00314525,96187.0,96186.0,0.305865]
[1732473382204,0.0008558,96187.0,96186.0,0.3152894]
[1732473382425,0.00314525,96187.0,96186.0,0.3152894]
[1732473382638,0.0008558,96187.0,96186.0,0.3152894]
[1732473382848,0.00295446,96187.0,96186.0,0.3152894]
[1732473383068,0.0008558,96187.0,96186.0,0.3152894]
[1732473384145,0.0008558,96187.0,96186.0,0.3132894]
[1732473384369,0.00295446,96187.0,96186.0,0.3132894]
[1732473384830,0.0008558,96187.0,96186.0,0.31328788]
[1732473385313,0.0008558,96187.0,96186.0,0.20932288]
[1732473385837,0.00295446,96187.0,96186.0,0.20932288]
[1732473388166,0.00295446,96187.0,96186.0,0.2016116]
[1732473388386,0.00295446,96187.0,96186.0,0.20932709]
[1732473388601,0.33563273,96187.0,96186.0,0.0017116]
[1732473389061,0.46141787,96187.0,96186.0,0.0017116]
[1732473389301,0.46142456,96187.0,96186.0,0.0017116]
[1732473389799,0.36805155,96187.0,96186.0,0.0017116]
[1732473390025,0.41124472,96187.0,96186.0,0.0017116]
[1732473391434,0.41094472,96187.0,96186.0,0.0017116]
[1732473396755,0.43129182,96187.0,96186.0,0.0017116]
[1732473397843,0.41094472,96187.0,96186.0,0.0017116]
[1732473398280,0.18028072,96187.0,96186.0,0.2016116]
[1732473398497,0.24105155,96187.0,96186.0,0.2016116]
[1732473398714,0.20863273,96187.0,96186.0,0.0017116]
[1732473398949,0.24103056,96187.0,96186.0,0.0017116]
[1732473399386,0.20863273,96187.0,96186.0,0.0017116]
[1732473400530,0.39977176,96187.0,96186.0,0.0017116]
[1732473403481,0.48136786,96187.0,96186.0,0.0017116]
[1732473405703,0.55736786,96187.0,96186.0,0.0017116]
[1732473414727,0.48136786,96187.0,96186.0,0.0017116]
[1732473420886,0.29022883,96187.0,96186.0,0.0017116]
[1732473421107,0.24102883,96187.0,96186.0,0.0017116]
[1732473423634,0.13706483,96187.0,96186.0,0.3055766]
[1732473423916,0.00265446,96187.0,96186.0,0.4335766]
[1732473424143,0.00265446,96187.0,96186.0,0.4355766]
[1732473424380,0.0005558,96187.0,96186.0,0.4355766]
[1732473425289,0.0005558,96187.0,96186.0,0.3296116]
[1732473426374,0.0004558,96187.0,96186.0,0.4335766]
[1732473427242,0.0004558,96187.0,96186.0,0.3296116]
[1732473432055,0.0024655,96187.0,96186.0,0.3296116]
[1732473432273,0.0004558,96187.0,96186.0,0.3296116]
[1732473432966,0.0004558,96187.0,96186.0,0.4355766]
[1732473436342,0.20643407,96187.0,96186.0,0.2016116]
[1732473436549,0.10247007,96187.0,96186.0,0.2016116]
[1732473436769,0.20844365,96187.0,96186.0,0.2016116]
[1732473438568,0.10447965,96187.0,96186.0,0.2016116]
[1732473438782,0.20844365,96187.0,96186.0,0.2016116]
[1732473439471,0.10447965,96187.0,96186.0,0.2016116]
[1732473440403,0.20844365,96187.0,96186.0,0.2016116]
[1732473440612,0.10447965,96187.0,96186.0,0.2016116]
[1732473441249,0.20844365,96187.0,96186.0,0.2016116]
[1732473442163,0.10447965,96187.0,96186.0,0.2016116]
[1732473442588,0.20844365,96187.0,96186.0,0.2016116]
[1732473443579,0.10447965,96187.0,96186.0,0.2016116]
[1732473449720,0.20844365,96187.0,96186.0,0.2016116]
[1732473450990,0.10447965,96187.0,96186.0,0.2016116]
[1732473453455,0.00246538,96187.0,96186.0,0.3075766]
[1732473453677,0.00246538,96187.0,96186.0,0.4309766]
[1732473453879,0.0004558,96187.0,96186.0,0.4309766]
[1732473456948,0.0004558,96187.0,96186.0,0.4289766]
[1732473457149,0.0004558,96187.0,96186.0,0.4309766]
[1732473460018,0.0004558,96187.0,96186.0,0.4289766]
[1732473460644,0.0004558,96187.0,96186.0,0.4309766]
[1732473460857,0.0004558,96187.0,96186.0,0.4289766]
[1732473461069,0.0004558,96187.0,96186.0,0.4309766]
[1732473462191,0.0004558,96187.0,96186.0,0.4289766]
[1732473462419,0.0004558,96187.0,96186.0,0.4309766]
[1732473463555,0.0003558,96187.0,96186.0,0.4309766]
[1732473466070,0.0003558,96187.0,96186.0,0.2016116]
[1732473466312,0.0003558,96187.0,96186.0,0.3055766]
[1732473468949,0.0003558,96187.0,96186.0,0.3075766]
[1732473470790,0.0003116,96194.0,96189.0,0.103961]
[1732473471033,0.10232587,96194.0,96189.0,0.103961]
[1732473471249,0.00231455,96193.0,96189.0,0.103961]
[1732473471910,0.00231455,96193.0,96192.0,0.103958]
[1732473472125,0.00231455,96193.0,96191.0,0.002]
[1732473472352,0.10232587,96194.0,96191.0,0.105959]
[1732473472557,0.00231423,96192.0,96191.0,0.002]
[1732473472776,0.10232587,96194.0,96191.0,0.002]
[1732473472999,0.00231423,96192.0,96191.0,0.002]
[1732473473209,0.10232587,96194.0,96191.0,0.002]
[1732473473437,0.00231423,96192.0,96191.0,0.002]
[1732473473659,0.10112587,96194.0,96191.0,0.002]
[1732473473870,0.00231423,96192.0,96191.0,0.002]
[1732473474043,0.10112587,96194.0,96191.0,0.105958]
[1732473474315,0.00231455,96193.0,96191.0,0.105958]
[1732473474732,0.00231455,96193.0,96192.0,0.103958]
[1732473474933,0.00231455,96193.0,96191.0,0.002]
[1732473475138,0.00231455,96193.0,96191.0,0.105959]
[1732473476036,0.00231455,96193.0,96191.0,0.103959]
[1732473477201,0.103959,96192.0,96187.0,0.103964]
[1732473477409,0.00231455,96193.0,96190.0,0.10396]
[1732473477617,0.00231391,96191.0,96190.0,0.10396]
[1732473477822,0.10112587,96194.0,96190.0,0.10396]
[1732473478033,0.00231391,96191.0,96190.0,0.10396]
[1732473478258,0.10112587,96194.0,96190.0,0.10396]
[1732473478482,0.00231391,96191.0,96190.0,0.10396]
[1732473478703,0.10112587,96194.0,96190.0,0.10396]
[1732473478921,0.00231455,96193.0,96190.0,0.10396]
[1732473479148,0.10112587,96194.0,96190.0,0.10396]
[1732473479364,0.00231423,96192.0,96190.0,0.10396]
[1732473479576,0.10112587,96194.0,96190.0,0.10396]
[1732473479780,0.00231391,96191.0,96190.0,0.10396]
[1732473480000,0.10112587,96194.0,96190.0,0.10396]
[1732473480203,0.00231391,96191.0,96190.0,0.10396]
[1732473480429,0.10112587,96194.0,96190.0,0.10396]
[1732473480638,0.00231391,96191.0,96190.0,0.10396]
[1732473480878,0.10112587,96194.0,96190.0,0.10396]
[1732473481097,0.00231391,96191.0,96190.0,0.10396]
[1732473481505,0.10112587,96194.0,96191.0,0.103958]
[1732473483925,0.10112587,96194.0,96190.0,0.10396]
[1732473484394,0.10112587,96194.0,96191.0,0.002]
[1732473484614,0.10112587,96194.0,96190.0,0.10396]
[1732473484798,0.10112587,96194.0,96191.0,0.002]
[1732473485045,0.00231455,96193.0,96191.0,0.002]
[1732473485259,0.00231455,96193.0,96190.0,0.10396]
[1732473485946,0.00231455,96193.0,96191.0,0.002]
[1732473486606,0.00231455,96193.0,96192.0,0.1999]
[1732473487919,0.00231455,96193.0,96192.0,0.303858]
[1732473489191,0.00231455,96193.0,96192.0,0.436458]
[1732473489699,0.0008558,96194.0,96193.0,0.105957]
[1732473490111,0.0008558,96194.0,96193.0,0.19676226]
[1732473490329,0.0008558,96194.0,96193.0,0.105957]
[1732473494574,0.0008558,96194.0,96193.0,0.305857]
[1732473494797,0.0008558,96194.0,96193.0,0.436457]
[1732473496092,0.0008558,96194.0,96193.0,0.586457]
[1732473496309,0.0008558,96194.0,96193.0,0.786457]
[1732473496525,0.0008558,96194.0,96193.0,0.97220051]
[1732473496753,0.0008558,96194.0,96193.0,0.786457]
[1732473497251,0.0008558,96194.0,96193.0,1.08847127]
[1732473497495,0.0008558,96194.0,96193.0,1.36708654]
[1732473497736,0.0008558,96194.0,96193.0,1.09047127]
[1732473497943,6e-07,96195.0,96194.0,0.838456]
[1732473498179,6e-07,96195.0,96194.0,1.09047027]
[1732473498397,6e-07,96195.0,96194.0,1.11347027]
[1732473498837,7e-07,96202.0,96201.0,0.5999]
[1732473499074,1e-07,96204.0,96203.0,0.988446]
[1732473499280,6e-05,96222.0,96212.0,0.986437]
[1732473499504,1.0,96241.0,96240.0,0.1999]
[1732473499723,1.0,96241.0,96240.0,0.396206]
[1732473500170,1.00218325,96241.0,96240.0,0.396206]
[1732473502454,1.00218325,96241.0,96240.0,0.347906]
[1732473510457,1.00218325,96241.0,96240.0,1.04532027]
[1732473511318,1.00303905,96241.0,96240.0,1.04532027]
[1732473511922,1.00303905,96241.0,96240.0,1.04332027]
[1732473512179,1.00303905,96241.0,96240.0,1.04532027]
[1732473512468,0.84144445,96241.0,96240.0,1.15452027]
[1732473512733,0.75832045,96241.0,96240.0,1.06832027]
[1732473512948,0.75832045,96241.0,96240.0,1.09845536]
[1732473513153,0.75832045,96241.0,96240.0,1.10045536]
[1732473513598,0.0008551,96270.0,96240.0,1.10045536]
[1732473513599,0.0008551,96270.0,96269.0,0.305775]
[1732473513819,0.0008551,96270.0,96269.0,0.655775]
[1732473514050,0.0008551,96270.0,96269.0,0.455775]
[1732473514501,0.0776,96291.0,96269.0,0.455775]
[1732473514502,0.0104101,96271.0,96270.0,0.255874]
[1732473514932,0.0104101,96271.0,96270.0,0.455774]
[1732473515148,0.0104101,96271.0,96270.0,0.305774]
[1732473515368,0.0880101,96271.0,96270.0,0.1999]
[1732473515590,0.0104101,96271.0,96270.0,0.305774]
[1732473516132,0.0583101,96271.0,96270.0,0.2019]
[1732473516222,0.0583101,96271.0,96270.0,0.1999]
[1732473516722,0.1359101,96271.0,96270.0,0.1999]
[1732473517427,0.13764554,96271.0,96270.0,0.1999]
[1732473519239,0.13764554,96271.0,96270.0,0.303774]
[1732473519451,0.13764554,96271.0,96270.0,0.305774]
[1732473519695,0.1359101,96271.0,96270.0,0.305774]
[1732473520229,0.13764554,96271.0,96270.0,0.305774]
[1732473520484,0.13264554,96271.0,96270.0,0.305774]
[1732473520923,0.13264554,96271.0,96270.0,0.305674]
[1732473521589,0.08474554,96271.0,96270.0,0.305674]
[1732473521814,0.08474554,96271.0,96270.0,0.303674]
[1732473522028,0.0830101,96271.0,96270.0,0.305674]
[1732473522463,0.0830101,96271.0,96270.0,0.303674]
[1732473522955,0.0830101,96271.0,96270.0,0.305674]
[1732473523411,0.0838659,96271.0,96270.0,0.305674]
[1732473523655,0.0838659,96271.0,96270.0,0.1998]
[1732473524102,0.08551681,96271.0,96270.0,0.1998]
[1732473524330,0.18938981,96271.0,96270.0,0.1998]
[1732473525698,0.08551681,96271.0,96270.0,0.1998]
[1732473525923,0.18938981,96271.0,96270.0,0.1998]
[1732473526176,0.08551681,96271.0,96270.0,0.1998]
[1732473526876,0.18938981,96271.0,96270.0,0.1998]
[1732473527352,0.18938981,96271.0,96236.0,0.2]
[1732473527353,0.0801,96257.0,96256.0,0.1998]
[1732473527862,0.2331214,96257.0,96256.0,0.1998]
[1732473528090,0.1292334,96257.0,96256.0,0.1998]
[1732473528546,0.1292334,96257.0,96256.0,0.303689]
[1732473528998,0.1277,96257.0,96256.0,0.303689]
[1732473529240,0.1292334,96257.0,96256.0,0.303689]
[1732473529475,0.0015334,96257.0,96256.0,0.305689]
[1732473529901,0.0801,96267.0,96266.0,0.105878]
[1732473530336,0.08163659,96267.0,96266.0,0.105878]
[1732473530577,0.08163659,96267.0,96266.0,0.305678]
[1732473530792,0.0801,96267.0,96266.0,0.305678]
[1732473534705,0.0809554,96267.0,96266.0,0.305678]
[1732473534943,0.0809554,96267.0,96266.0,0.303678]
[1732473535186,0.0825037,96267.0,96266.0,0.303678]
[1732473535370,0.0008554,96267.0,96266.0,0.305678]
[1732473535888,0.0008554,96267.0,96266.0,0.303678]
[1732473536106,0.0008554,96267.0,96266.0,0.305678]
[1732473537031,0.0008554,96267.0,96266.0,0.455678]
[1732473537471,0.0008554,96267.0,96266.0,0.55769227]
[1732473538123,0.0008554,96267.0,96266.0,0.55569227]
[1732473538347,0.0008554,96267.0,96266.0,0.55769227]
[1732473540198,0.0008554,96267.0,96266.0,0.75769227]
[1732473540425,0.0008554,96267.0,96266.0,0.455678]
[1732473543664,0.0008554,96267.0,96266.0,0.305678]
[1732473544118,0.00199725,96267.0,96266.0,0.1998]
[1732473544349,0.00199725,96267.0,96245.0,0.13814863]
[1732473544350,0.0776,96266.0,96263.0,0.1998]
[1732473544580,0.0776,96266.0,96265.0,0.1998]
[1732473545492,0.0776,96266.0,96265.0,0.303679]
[1732473545901,0.0776,96266.0,96265.0,0.1998]
[1732473546669,0.0776,96266.0,96265.0,0.303679]
[1732473547111,0.0776,96266.0,96265.0,0.1998]
[1732473547563,0.07873788,96266.0,96265.0,0.1998]
[1732473547786,0.07873788,96266.0,96264.0,0.1998]
[1732473548032,0.103879,96265.0,96264.0,0.1998]
[1732473548495,0.10501664,96265.0,96264.0,0.1998]
[1732473548945,0.10388,96264.0,96263.0,0.1998]
[1732473549409,0.10501739,96264.0,96263.0,0.1998]
[1732473549657,0.15151739,96264.0,96263.0,0.1998]
[1732473549875,0.103882,96263.0,96262.0,0.1998]
[1732473550090,0.184682,96263.0,96262.0,0.1998]
[1732473550305,0.08193715,96263.0,96259.0,0.1998]
[1732473550578,0.103886,96260.0,96259.0,0.1998]
[1732473551029,0.103886,96260.0,96256.0,0.0017102]
[1732473551030,0.103886,96259.0,96258.0,0.1998]
[1732473551247,0.00113641,96260.0,96259.0,0.1998]
[1732473551471,0.103885,96260.0,96259.0,0.1998]
[1732473551703,0.103886,96259.0,96258.0,0.1998]
[1732473551917,0.0808,96260.0,96256.0,0.0017102]
[1732473552135,0.231188,96257.0,96256.0,0.0017102]
[1732473553258,0.33320227,96257.0,96256.0,0.0017102]
[1732473555119,0.33433193,96257.0,96256.0,0.0017102]
[1732473555781,0.103895,96251.0,96248.0,0.1998]
[1732473556228,0.186797,96249.0,96248.0,0.1998]
[1732473556458,0.235697,96249.0,96248.0,0.1998]
[1732473556682,0.103898,96248.0,96245.0,0.1998]
[1732473556928,0.34072369,96249.0,96245.0,0.1998]
[1732473557149,0.34072369,96249.0,96240.0,0.1056168]
[1732473557150,0.0758,96248.0,96243.0,0.1998]
[1732473557404,0.103902,96245.0,96243.0,0.1998]
[1732473557628,0.207798,96247.0,96243.0,0.1998]
[1732473557629,0.0758,96247.0,96243.0,0.1998]
[1732473557852,0.179699,96247.0,96243.0,0.1998]
[1732473558267,0.0758,96247.0,96246.0,0.1998]
[1732473558791,0.0758,96247.0,96246.0,0.3057]
[1732473558792,0.07691993,96247.0,96246.0,0.3057]
[1732473559013,0.07691993,96247.0,96246.0,0.1998]
[1732473559243,0.07691993,96247.0,96246.0,0.3037]
[1732473560419,0.0758,96247.0,96246.0,0.3037]
[1732473561112,0.0758,96247.0,96246.0,0.3057]
[1732473561560,0.07985524,96270.0,96257.0,0.303688]
[1732473561561,0.0495,96258.0,96257.0,0.303688]
[1732473562072,0.1292,96258.0,96257.0,0.303688]
[1732473562309,0.13032344,96258.0,96257.0,0.303688]
[1732473562531,0.13032344,96258.0,96257.0,0.1998]
[1732473562986,0.1292,96258.0,96257.0,0.1998]
[1732473563440,0.13032344,96258.0,96257.0,0.1998]
[1732473568146,0.13032344,96258.0,96257.0,0.303688]
[1732473568599,0.1292,96258.0,96257.0,0.1998]
[1732473568809,0.1303267,96258.0,96257.0,0.1998]
[1732473569232,0.1303267,96258.0,96248.0,0.103897]
[1732473569233,0.253379,96256.0,96243.0,0.1998]
[1732473569449,0.103905,96241.0,96237.0,0.1998]
[1732473569670,0.224605,96241.0,96237.0,0.1998]
[1732473569882,0.224605,96241.0,96227.0,0.10392]
[1732473569883,0.22572883,96241.0,96235.0,0.1998]
[1732473570109,0.22572883,96241.0,96222.0,0.09242851]
[1732473570110,0.3277431,96241.0,96233.0,0.1998]
[1732473570756,0.3277431,96241.0,96229.0,0.1998]
[1732473571414,0.3277431,96241.0,96233.0,0.103914]
[1732473571630,0.3277431,96241.0,96231.0,0.103915]
[1732473571855,0.3277431,96241.0,96230.0,0.103917]
[1732473572068,0.3277431,96241.0,96229.0,0.1998]
[1732473572521,0.3277431,96241.0,96229.0,0.303717]
[1732473572719,0.3277431,96241.0,96229.0,0.1998]
[1732473573189,0.3277431,96241.0,96230.0,0.103917]
[1732473573423,0.3277431,96241.0,96229.0,0.1998]
[1732473573930,0.3277431,96241.0,96229.0,0.303718]
[1732473574143,0.3277431,96241.0,96229.0,0.1998]
[1732473578167,0.2238381,96241.0,96229.0,0.1998]
[1732473578391,0.2238381,96241.0,96233.0,0.1998]
[1732473578846,0.3277431,96241.0,96235.0,0.103911]
[1732473579063,0.3277431,96241.0,96233.0,0.1998]
[1732473579064,0.2238381,96241.0,96233.0,0.1998]
[1732473579276,0.3277431,96241.0,96235.0,0.103912]
[1732473579503,0.00112383,96241.0,96240.0,0.3054168]
[1732473579719,0.00112383,96241.0,96240.0,0.3074168]
[1732473579982,0.103897,96249.0,96243.0,0.103903]
[1732473580198,0.10201427,96251.0,96240.0,0.3054168]
[1732473580445,0.00111542,96248.0,96240.0,0.2035108]
[1732473580652,0.103897,96249.0,96242.0,0.103903]
[1732473580865,0.00111591,96250.0,96242.0,0.103903]
[1732473581096,0.103905,96241.0,96240.0,0.0017108]
[1732473581338,0.28881927,96241.0,96240.0,0.0017108]
[1732473581552,0.28993297,96241.0,96240.0,0.0017108]
[1732473581766,0.0840137,96241.0,96240.0,0.0017108]
[1732473582450,0.0840137,96241.0,96240.0,0.1056168]
[1732473582696,0.0840137,96241.0,96240.0,0.3054168]
[1732473582697,0.0011137,96241.0,96240.0,0.3054168]
[1732473582946,0.0011137,96241.0,96240.0,0.3074168]
[1732473583155,0.0829,96256.0,96251.0,0.1998]
[1732473583405,0.0469,96262.0,96250.0,0.002]
[1732473583406,0.0469,96262.0,96256.0,0.303689]
[1732473583618,0.0469,96262.0,96256.0,0.305689]
[1732473584328,0.0829,96263.0,96256.0,0.305689]
[1732473584780,0.0008554,96267.0,96256.0,0.305689]
[1732473585730,0.0008554,96267.0,96256.0,0.455689]
[1732473586856,0.0008554,96267.0,96256.0,0.49707023]
[1732473588633,0.0008554,96267.0,96256.0,0.49507023]
[1732473589077,0.0008554,96267.0,96246.0,0.24238206]
[1732473589078,0.1279,96252.0,96244.0,0.09230654]
[1732473589083,0.2313,96251.0,96240.0,0.0017108]
[1732473589324,0.10201427,96250.0,96240.0,0.0017108]
[1732473589539,0.103897,96249.0,96240.0,0.0037108]
[1732473589756,0.10201427,96248.0,96240.0,0.0037108]
[1732473589964,0.1039,96247.0,96240.0,0.0037108]
[1732473590190,0.001184,96248.0,96247.0,0.1998]
[1732473590417,0.0813,96251.0,96247.0,0.2018]
[1732473590630,0.0813,96251.0,96247.0,0.1998]
[1732473594157,0.185195,96251.0,96247.0,0.1998]
[1732473594391,0.0813,96251.0,96247.0,0.1998]
[1732473595502,0.0813,96251.0,96247.0,0.2018]
[1732473595948,0.103896,96250.0,96247.0,0.1998]
[1732473596161,0.0813,96251.0,96247.0,0.1998]
[1732473596789,0.0813,96251.0,96250.0,0.002]
[1732473597538,0.0813,96251.0,96247.0,0.2018]
[1732473597998,0.0813,96251.0,96249.0,0.002]
[1732473598218,0.0813,96251.0,96250.0,0.002]
[1732473598638,0.0813,96251.0,96249.0,0.002]
[1732473600499,0.0008553,96256.0,96255.0,0.2018]
[1732473601378,0.0008553,96256.0,96255.0,0.30569]
[1732473601593,0.0008553,96256.0,96255.0,0.2018]
[1732473602005,0.0021353,96256.0,96255.0,0.2018]
[1732473602210,0.0021353,96256.0,96255.0,0.30569]
[1732473602423,0.0021353,96256.0,96255.0,0.1998]
[1732473602626,0.0008553,96256.0,96255.0,0.1998]
[1732473602857,0.0021353,96256.0,96255.0,0.1998]
[1732473603328,0.0021353,96256.0,96255.0,0.2018]